bitfinex/quotes_SOLUSD_20251013
["timestamp","ask_amount","ask_price","bid_price","bid_amount"]
[1760319392200,5.85270784,198.56,198.52,5.03727584]
[1760319392410,25.83560656,198.59,198.51,0.2]
[1760319392411,5.85270784,198.54,198.51,0.2]
[1760319392618,5.85270784,198.52,198.51,0.2]
[1760319393809,20.8,198.56,198.51,0.9]
[1760319394105,5.85270784,198.55,198.51,5.93752959]
[1760319394405,5.85270784,198.55,198.51,5.23752959]
[1760319394607,5.85270784,198.53,198.51,5.23752959]
[1760319395113,5.85270784,198.54,198.51,5.23752959]
[1760319395609,5.85270784,198.54,198.51,0.2]
[1760319395908,5.85270784,198.52,198.51,0.2]
[1760319396806,20.8,198.52,198.51,0.2]
[1760319397004,26.65270784,198.52,198.51,0.2]
[1760319397606,5.85270784,198.54,198.51,0.9]
[1760319397797,5.85270784,198.54,198.51,5.23752959]
[1760319397997,5.85270784,198.52,198.51,5.23752959]
[1760319398716,20.8,198.57,198.51,5.93752959]
[1760319398903,5.85270784,198.54,198.51,5.93752959]
[1760319399403,5.85270784,198.54,198.51,5.23752959]
[1760319399607,0.3,198.59,198.52,0.7]
[1760319399817,5.85270784,198.56,198.52,0.7]
[1760319399994,20.8,198.58,198.51,17.83135357]
[1760319399995,0.0957719,198.52,198.51,5.23752959]
[1760319400201,5.94847974,198.52,198.51,5.23752959]
[1760319400605,5.94847974,198.52,198.51,0.2]
[1760319402121,0.0957719,198.52,198.51,5.93752959]
[1760319404304,5.94847974,198.52,198.51,0.2]
[1760319406402,31.78575558,198.52,198.51,0.2]
[1760319406816,26.74847974,198.52,198.51,0.2]
[1760319408524,5.94847974,198.52,198.51,5.94752959]
[1760319409945,0.10057388,198.53,198.51,5.94752959]
[1760319410112,0.10057388,198.53,198.52,11.58647521]
[1760319410311,0.10074581,198.54,198.52,16.62375105]
[1760319410609,0.10020392,198.56,198.54,10.87647521]
[1760319410805,0.10478662,198.6,198.54,16.72918305]
[1760319411011,1e-08,198.6,198.58,10.87647521]
[1760319411214,1e-08,198.6,198.55,0.71]
[1760319411410,5.85270784,198.57,198.54,0.71]
[1760319411620,5.85270784,198.57,198.52,18.34046544]
[1760319411823,5.85270784,198.57,198.53,0.71]
[1760319412010,5.85270784,198.55,198.52,17.63046544]
[1760319412215,5.85270784,198.53,198.51,5.23751491]
[1760319412413,5.85270784,198.53,198.51,0.2]
[1760319412818,5.85270784,198.53,198.51,5.23751574]
[1760319413213,6.44270784,198.53,198.51,0.2]
[1760319413530,0.59,198.52,198.51,0.2]
[1760319414317,20.8,198.5,198.46,0.2]
[1760319414633,5.85270784,198.47,198.46,0.2]
[1760319415925,21.39,198.53,198.46,0.2]
[1760319416235,5.85270784,198.47,198.46,0.2]
[1760319417023,6.44270784,198.47,198.46,0.2]
[1760319417230,5.85270784,198.47,198.46,0.2]
[1760319418721,32.2812527,198.47,198.46,0.2]
[1760319419125,11.4812527,198.47,198.46,0.2]
[1760319419327,5.85270784,198.39,198.37,5.51]
[1760319419531,5.85270784,198.39,198.38,0.69]
[1760319419734,5.85270784,198.4,198.38,0.69]
[1760319420118,0.10024755,198.39,198.38,0.69]
[1760319420317,5.95295539,198.39,198.37,9.86108484]
[1760319420620,5.95295539,198.39,198.37,10.55108484]
[1760319420815,5.95295539,198.39,198.38,0.69]
[1760319421526,0.10024755,198.39,198.38,0.69]
[1760319422525,0.10024755,198.39,198.38,5.73083072]
[1760319422935,0.10024755,198.39,198.38,16.60730593]
[1760319423739,0.10024755,198.39,198.38,5.04083072]
[1760319423936,0.10024755,198.39,198.38,5.73083072]
[1760319424736,5.95295539,198.39,198.37,4.82]
[1760319424956,26.65270784,198.38,198.37,4.82]
[1760319425541,27.24270784,198.38,198.37,4.82]
[1760319425915,26.65270784,198.38,198.37,4.82]
[1760319426532,32.28353856,198.38,198.37,4.82]
[1760319426940,26.65270784,198.38,198.37,4.82]
[1760319427237,0.10024755,198.39,198.37,10.551052]
[1760319427447,5.85270784,198.38,198.37,4.82]
[1760319427834,5.85270784,198.38,198.37,10.55108484]
[1760319428018,5.85270784,198.38,198.37,9.86108484]
[1760319428217,5.85270784,198.38,198.37,4.82]
[1760319428721,5.85270784,198.38,198.37,9.86108484]
[1760319428922,5.85270784,198.38,198.37,4.82]
[1760319429323,0.10024755,198.39,198.37,10.55108484]
[1760319429525,0.10024755,198.39,198.38,0.69]
[1760319430018,0.10024755,198.39,198.37,4.82]
[1760319430221,5.85270784,198.38,198.37,4.82]
[1760319431153,0.10024755,198.39,198.37,9.86108484]
[1760319431352,0.10268308,198.4,198.38,0.69]
[1760319431654,0.10268308,198.4,198.38,17.41918305]
[1760319431831,0.10268308,198.4,198.39,0.69]
[1760319432034,5.95539092,198.4,198.37,22.46379694]
[1760319432241,5.85270784,198.39,198.37,23.15379694]
[1760319432554,5.85270784,198.39,198.37,10.55108484]
[1760319432729,5.85270784,198.38,198.37,9.86108484]
[1760319432929,5.95539092,198.4,198.37,9.86108484]
[1760319433145,5.85270784,198.38,198.37,4.82]
[1760319433946,0.10268308,198.4,198.37,5.73108484]
[1760319434152,0.10268308,198.4,198.38,0.69]
[1760319434733,5.85270784,198.39,198.37,5.04108484]
[1760319434932,5.85270784,198.38,198.35,17.64557599]
[1760319435133,5.85270784,198.38,198.36,0.69]
[1760319435350,0.10268308,198.4,198.34,0.2]
[1760319435351,5.85270784,198.37,198.34,0.2]
[1760319435528,5.85270784,198.35,198.34,0.2]
[1760319437251,6.54270784,198.35,198.34,0.2]
[1760319437956,11.58430098,198.35,198.34,0.2]
[1760319439659,31.67647521,198.32,198.31,0.2]
[1760319439977,37.52918305,198.32,198.23,5.04454492]
[1760319440134,5.85270784,198.24,198.22,0.69]
[1760319440457,5.85270784,198.23,198.19,0.2]
[1760319440640,5.85270784,198.21,198.19,0.2]
[1760319441465,5.85270784,198.2,198.18,0.2]
[1760319441663,2.63747629,198.21,198.18,0.2]
[1760319441827,5.85270784,198.19,198.18,0.2]
[1760319442442,6.54270784,198.19,198.18,0.2]
[1760319442836,5.85270784,198.19,198.18,0.2]
[1760319443363,26.65270784,198.19,198.18,0.2]
[1760319444760,31.69837109,198.19,198.18,0.2]
[1760319445141,10.89837109,198.19,198.18,0.2]
[1760319445347,11.58837109,198.19,198.18,0.2]
[1760319445549,20.8,198.19,198.18,0.2]
[1760319445851,5.85270784,198.19,198.18,5.91591785]
[1760319446246,23.43704593,198.24,198.18,5.91591785]
[1760319446545,5.85270784,198.23,198.19,0.67]
[1760319446750,5.85270784,198.23,198.2,0.67]
[1760319447244,5.85270784,198.23,198.21,0.67]
[1760319447443,5.85270784,198.23,198.18,17.86071248]
[1760319447648,5.85270784,198.21,198.19,0.67]
[1760319448361,5.85270784,198.21,198.18,0.2]
[1760319448554,26.65270784,198.19,198.18,0.2]
[1760319449142,5.85270784,198.19,198.18,0.87]
[1760319449747,5.85270784,198.19,198.18,5.91591785]
[1760319449955,23.48527385,198.28,198.18,5.91591785]
[1760319449956,20.8,198.27,198.18,18.53071248]
[1760319450154,5.85270784,198.23,198.19,0.67]
[1760319450354,5.85270784,198.23,198.2,5.04540867]
[1760319450660,11.67577252,198.35,198.21,0.67]
[1760319450862,5.85270784,198.26,198.21,0.67]
[1760319451163,0.10929731,198.35,198.22,0.66]
[1760319451462,5.85270784,198.29,198.23,10.87647521]
[1760319451655,8.7400964,198.3,198.24,0.66]
[1760319451856,8.7400964,198.34,198.25,19.61657161]
[1760319452053,8.7400964,198.28,198.22,0.66]
[1760319452241,8.7400964,198.3,198.24,10.87647521]
[1760319452448,8.7400964,198.31,198.25,0.66]
[1760319453543,8.7400964,198.33,198.25,0.66]
[1760319453750,8.7400964,198.29,198.23,17.65625787]
[1760319453954,8.7400964,198.29,198.24,0.66]
[1760319454150,8.7400964,198.27,198.24,0.66]
[1760319454453,8.7400964,198.27,198.25,5.04413619]
[1760319456478,8.7400964,198.27,198.23,12.61161277]
[1760319456665,8.7400964,198.27,198.22,5.0448996]
[1760319456970,8.7400964,198.23,198.22,5.0448996]
[1760319457477,20.8,198.2,198.18,0.2]
[1760319457649,8.7400964,198.19,198.18,0.2]
[1760319457849,9.4100964,198.19,198.18,0.2]
[1760319458583,25.33223486,198.19,198.17,0.2]
[1760319458745,20.8,198.16,198.14,0.2]
[1760319458946,8.7400964,198.15,198.14,0.2]
[1760319459146,9.4100964,198.15,198.14,0.2]
[1760319460053,9.51557696,198.15,198.14,0.2]
[1760319460372,20.8,198.12,198.11,0.2]
[1760319460560,34.58754239,198.12,198.11,0.2]
[1760319460764,43.99763879,198.12,198.11,0.2]
[1760319461262,35.25754239,198.12,198.11,0.2]
[1760319461571,46.1340176,198.12,198.11,0.2]
[1760319461745,54.874114,198.12,198.08,0.2]
[1760319461948,8.7400964,198.1,198.08,0.2]
[1760319462149,17.4801928,198.1,198.08,0.2]
[1760319462349,18.1501928,198.1,198.08,0.2]
[1760319462650,22.52821172,198.1,198.08,0.2]
[1760319462954,17.4801928,198.1,198.08,0.2]
[1760319463154,23.19820355,198.1,198.08,0.2]
[1760319463353,17.4801928,198.1,198.08,0.2]
[1760319464049,8.7400964,198.09,198.08,0.2]
[1760319465068,29.5400964,198.09,198.08,0.2]
[1760319465275,29.5400964,198.09,198.08,5.90846526]
[1760319465569,0.10548056,198.15,198.08,5.90846526]
[1760319465760,8.7400964,198.1,198.08,5.90846526]
[1760319465962,8.7400964,198.1,198.08,0.2]
[1760319466164,29.5400964,198.1,198.08,0.2]
[1760319466370,38.2801928,198.1,198.08,0.2]
[1760319466972,0.68,198.09,198.08,0.2]
[1760319467271,22.52816699,198.1,198.08,0.2]
[1760319467661,0.68,198.09,198.08,0.2]
[1760319467872,22.52816699,198.1,198.08,0.2]
[1760319468063,20.8,198.09,198.08,0.2]
[1760319468974,11.55647521,198.09,198.03,0.2]
[1760319469152,29.5400964,198.04,198.03,0.2]
[1760319469963,9.4200964,198.04,198.03,0.2]
[1760319470772,8.7400964,198.04,198.03,0.2]
[1760319470964,13.78958135,198.04,198.03,0.2]
[1760319471158,31.67647521,198.03,198.02,0.2]
[1760319471361,0.68,198.03,198.02,0.2]
[1760319471564,13.78958135,198.04,198.02,0.2]
[1760319471875,14.46958135,198.04,198.02,0.2]
[1760319472276,20.8,198.07,198.03,0.68]
[1760319472466,29.5400964,198.04,198.02,0.2]
[1760319472659,29.5400964,198.04,198.02,0.88]
[1760319472866,8.7400964,198.03,198.02,0.2]
[1760319473368,9.4200964,198.03,198.02,0.2]
[1760319473574,8.7400964,198.03,198.02,0.2]
[1760319474565,29.5400964,198.04,198.02,0.9]
[1760319474766,29.5400964,198.04,198.02,5.94999495]
[1760319474960,8.7400964,198.04,198.03,0.7]
[1760319476482,8.7400964,198.04,198.02,5.24997679]
[1760319476688,8.7400964,198.03,198.02,5.24997679]
[1760319477183,8.7400964,198.03,198.02,0.2]
[1760319478884,8.7400964,198.03,198.02,5.94999495]
[1760319479086,8.7400964,198.04,198.02,5.94999495]
[1760319479288,8.7400964,198.03,198.02,5.94999495]
[1760319480010,8.7400964,198.03,198.02,0.2]
[1760319480289,8.84729096,198.03,198.02,0.2]
[1760319481194,35.37703089,198.03,198.02,0.2]
[1760319481400,14.57703089,198.03,198.02,0.2]
[1760319481690,25.4535061,198.03,198.02,0.2]
[1760319482105,0.10719456,198.03,198.02,0.2]
[1760319482292,25.4535061,198.03,198.02,0.2]
[1760319482591,10.87647521,198.01,198.0,0.2]
[1760319482786,10.87647521,198.01,197.99,0.2]
[1760319482787,31.67647521,198.0,197.99,0.2]
[1760319482988,46.04707666,198.0,197.99,0.2]
[1760319483298,8.7400964,197.93,197.92,5.05250983]
[1760319483595,29.5400964,197.93,197.88,4.84]
[1760319483779,8.7400964,197.89,197.88,4.84]
[1760319484693,9.3200964,197.89,197.88,4.84]
[1760319485023,20.8,197.91,197.88,10.59353877]
[1760319485176,8.7400964,197.89,197.88,9.89353877]
[1760319485376,20.8,197.91,197.88,9.89353877]
[1760319485679,8.7400964,197.89,197.88,4.84]
[1760319485869,29.5400964,197.89,197.88,4.84]
[1760319486074,29.5400964,197.89,197.88,10.59356781]
[1760319486397,8.7400964,197.89,197.88,5.54]
[1760319486573,8.7400964,197.89,197.88,10.59356781]
[1760319487690,20.8,197.93,197.88,10.59356781]
[1760319487996,8.7400964,197.91,197.88,22.52748735]
[1760319488392,10.98366977,198.03,197.89,0.7]
[1760319488592,8.7400964,197.92,197.89,0.7]
[1760319488780,8.7400964,197.9,197.88,22.52748735]
[1760319489183,8.7400964,197.9,197.88,4.84]
[1760319490889,20.8,197.92,197.89,0.7]
[1760319491095,20.8,197.92,197.9,0.7]
[1760319491396,8.7400964,197.93,197.91,0.7]
[1760319491598,8.7400964,197.93,197.92,0.7]
[1760319491791,8.7400964,197.96,197.92,0.7]
[1760319491991,8.7400964,197.96,197.93,0.7]
[1760319492193,0.10719456,198.03,197.93,0.7]
[1760319492395,8.7400964,198.01,197.94,10.87647521]
[1760319492594,8.7400964,198.01,197.95,0.7]
[1760319493097,8.7400964,198.01,197.97,10.87647521]
[1760319493298,8.7400964,198.02,197.98,0.7]
[1760319493601,0.10719456,198.03,197.96,18.38033946]
[1760319493602,8.7400964,198.0,197.96,18.38033946]
[1760319493779,8.7400964,197.97,197.96,5.75152556]
[1760319493981,8.7400964,197.97,197.93,12.63033738]
[1760319494206,0.10719456,198.03,197.9,10.87647521]
[1760319494207,8.7400964,197.95,197.91,5.05280177]
[1760319494393,20.8,197.98,197.92,0.7]
[1760319494701,8.7400964,197.96,197.92,0.7]
[1760319495204,8.7400964,197.96,197.93,5.75229121]
[1760319495401,0.10719456,198.03,197.93,18.38301924]
[1760319495698,8.7400964,197.99,197.94,0.7]
[1760319495890,8.7400964,197.99,197.95,0.7]
[1760319496099,8.7400964,197.97,197.95,0.7]
[1760319496403,8.7400964,197.97,197.93,17.68301924]
[1760319496610,20.8,198.0,197.91,5.05262834]
[1760319496899,8.7400964,197.95,197.94,0.7]
[1760319497204,8.7400964,197.95,197.91,5.05255387]
[1760319497513,8.7400964,197.92,197.91,5.05255387]
[1760319498296,20.8,197.97,197.91,5.75255387]
[1760319498499,8.7400964,197.93,197.91,5.75255387]
[1760319498694,8.7400964,197.93,197.92,0.7]
[1760319498899,8.7400964,197.93,197.91,5.05255387]
[1760319499098,8.7400964,197.93,197.89,5.05331244]
[1760319499300,8.7400964,197.9,197.89,5.05331244]
[1760319499680,8.7400964,197.9,197.88,4.84]
[1760319499985,8.7400964,197.9,197.88,9.89346978]
[1760319500186,0.10678175,197.9,197.89,0.7]
[1760319500777,1e-08,197.9,197.89,11.57647521]
[1760319500983,1e-08,197.9,197.89,0.7]
[1760319501179,1e-08,197.9,197.88,9.89346978]
[1760319501404,1e-08,197.9,197.89,0.7]
[1760319502506,1e-08,197.9,197.89,11.57647521]
[1760319502705,1e-08,197.91,197.9,10.87647521]
[1760319503019,0.10395993,197.93,197.9,11.57647521]
[1760319503203,0.10395993,197.93,197.92,10.87647521]
[1760319503408,0.10211956,197.94,197.92,10.87647521]
[1760319503604,0.10211956,197.94,197.93,11.57647521]
[1760319504319,0.11005031,197.97,197.93,20.31657161]
[1760319504525,1e-08,197.97,197.96,10.87647521]
[1760319504697,1e-08,197.98,197.96,10.87647521]
[1760319504896,1e-08,197.98,197.97,0.7]
[1760319505123,8.74009641,197.98,197.95,5.05178075]
[1760319505725,8.7400964,197.96,197.93,5.05216625]
[1760319506028,8.7400964,197.94,197.93,5.05216625]
[1760319506922,8.7400964,197.95,197.93,18.38289428]
[1760319507296,1e-08,197.98,197.94,0.7]
[1760319507602,8.7400964,197.95,197.94,0.7]
[1760319508515,1e-08,197.98,197.95,10.87647521]
[1760319508921,1e-08,197.98,197.94,0.7]
[1760319508922,1e-08,197.98,197.96,0.7]
[1760319509430,1e-08,197.98,197.97,0.7]
[1760319509804,8.74009641,197.98,197.97,0.7]
[1760319511014,8.74009641,197.98,197.95,17.68123263]
[1760319511217,8.74009641,197.98,197.94,0.7]
[1760319511218,8.7400964,197.96,197.92,28.56038789]
[1760319511424,8.7400964,197.94,197.93,0.7]
[1760319511618,5.88838179,197.94,197.92,17.68391268]
[1760319511924,5.88838179,197.94,197.92,5.05254648]
[1760319512119,20.8,197.97,197.92,5.05254648]
[1760319512322,5.88838179,197.93,197.92,5.05254648]
[1760319512521,5.88838179,197.93,197.92,29.26038789]
[1760319512725,5.88838179,197.93,197.92,5.05254648]
[1760319514025,5.88838179,197.93,197.9,17.68569983]
[1760319514229,5.88838179,197.91,197.9,17.68569983]
[1760319514426,5.88838179,197.94,197.91,0.7]
[1760319514629,5.88838179,197.94,197.92,0.7]
[1760319515136,5.88838179,197.94,197.9,17.68569983]
[1760319515431,5.88838179,197.92,197.9,17.68569983]
[1760319515618,5.88838179,197.92,197.9,18.38569983]
[1760319515820,5.88838179,197.91,197.9,18.38569983]
[1760319516220,5.88838179,197.92,197.9,18.38569983]
[1760319517327,5.88838179,197.91,197.9,17.68569983]
[1760319517518,5.88838179,197.91,197.9,5.05305709]
[1760319518032,5.88838179,197.91,197.88,9.89331265]
[1760319518331,5.88838179,197.89,197.88,4.84]
[1760319518534,5.88838179,197.89,197.88,9.89356781]
[1760319519831,20.8,197.92,197.88,9.89356781]
[1760319520040,20.8,197.96,197.89,0.7]
[1760319520225,0.10363914,197.9,197.89,5.75331244]
[1760319520427,0.10363914,197.9,197.89,15.92978765]
[1760319520635,0.10363914,197.9,197.89,16.62978765]
[1760319521116,0.10363914,197.9,197.89,5.05331244]
[1760319521724,0.10363914,197.9,197.89,5.75331244]
[1760319522113,0.10363914,197.9,197.89,5.05331244]
[1760319522636,6.57202093,197.9,197.88,4.84]
[1760319522950,5.88838179,197.89,197.88,9.89349257]
[1760319523124,6.46838179,197.89,197.88,4.84]
[1760319523329,33.15676358,197.89,197.88,4.84]
[1760319524317,38.21007602,197.89,197.88,4.84]
[1760319524832,27.26838179,197.89,197.88,4.84]
[1760319525746,33.15676358,197.89,197.88,4.84]
[1760319527621,26.68838179,197.89,197.88,4.84]
[1760319527820,0.10363914,197.9,197.88,9.89356781]
[1760319528031,5.99202093,197.9,197.88,10.57356781]
[1760319528231,5.88838179,197.89,197.88,10.57356781]
[1760319528950,5.88838179,197.89,197.88,9.89356781]
[1760319529152,5.88838179,197.89,197.88,4.84]
[1760319529358,5.88838179,197.89,197.87,5.05381953]
[1760319529535,0.10363914,197.9,197.87,5.05381953]
[1760319529536,5.88838179,197.88,197.87,5.05381953]
[1760319529932,5.88838179,197.88,197.87,5.73381953]
[1760319531239,5.99202093,197.9,197.87,5.73381953]
[1760319531423,5.88838179,197.89,197.88,0.68]
[1760319531841,0.10363914,197.9,197.88,0.68]
[1760319532046,5.98254805,197.91,197.89,0.68]
[1760319532219,5.88838179,197.9,197.87,17.68837757]
[1760319532419,5.88838179,197.89,197.87,17.68837757]
[1760319532626,5.88838179,197.89,197.85,10.87647521]
[1760319532824,5.88838179,197.89,197.86,0.68]
[1760319533022,5.88838179,197.88,197.87,0.68]
[1760319533249,5.88838179,197.88,197.84,18.37106347]
[1760319533541,0.09416626,197.91,197.84,18.37106347]
[1760319533542,5.88838179,197.87,197.85,0.68]
[1760319533735,5.88838179,197.9,197.86,10.87647521]
[1760319534042,5.98254805,197.91,197.87,0.68]
[1760319534243,5.98254805,197.91,197.88,0.68]
[1760319534449,5.88838179,197.89,197.86,0.68]
[1760319534747,5.88838179,197.88,197.87,5.71382321]
[1760319535436,5.88838179,197.88,197.85,5.05421552]
[1760319535632,5.88838179,197.86,197.85,5.05421552]
[1760319536633,21.47416626,197.91,197.84,17.69106347]
[1760319536846,5.88838179,197.87,197.85,0.66]
[1760319537231,5.88838179,197.89,197.86,0.66]
[1760319537434,5.88838179,197.87,197.84,17.69106347]
[1760319537745,0.58,197.9,197.84,17.69106347]
[1760319537746,5.88838179,197.85,197.84,17.69106347]
[1760319538543,5.88838179,197.86,197.84,18.35106347]
[1760319538751,5.88838179,197.86,197.84,12.63647391]
[1760319539132,5.88838179,197.86,197.84,13.29647391]
[1760319539530,5.88838179,197.85,197.84,13.29647391]
[1760319539931,0.09416626,197.91,197.84,13.29647391]
[1760319540132,0.10118105,197.85,197.82,5.05510059]
[1760319540336,5.88838179,197.83,197.82,5.05510059]
[1760319540552,5.98956284,197.85,197.82,17.69285208]
[1760319540854,5.98956284,197.85,197.83,0.66]
[1760319541355,5.98956284,197.85,197.79,5.05586733]
[1760319541656,5.88838179,197.81,197.79,18.35553566]
[1760319541856,5.88838179,197.81,197.8,0.66]
[1760319542435,5.88838179,197.81,197.79,17.69553566]
[1760319542637,0.10118105,197.85,197.81,10.87647521]
[1760319542834,0.10118105,197.85,197.82,17.69285208]
[1760319543038,0.10118105,197.85,197.82,18.35285208]
[1760319543238,0.10118105,197.85,197.83,0.66]
[1760319543239,5.88838179,197.84,197.83,0.66]
[1760319543654,0.10118105,197.85,197.83,0.66]
[1760319544177,0.0914186,197.86,197.84,10.87647521]
[1760319544347,1e-08,197.86,197.85,0.66]
[1760319544666,5.8883818,197.86,197.83,0.66]
[1760319544869,5.8883818,197.86,197.84,5.05458956]
[1760319545070,5.88838179,197.85,197.84,5.05458956]
[1760319545766,5.88838179,197.85,197.82,0.66]
[1760319545937,5.88838179,197.85,197.8,10.87647521]
[1760319546137,5.88838179,197.85,197.81,0.66]
[1760319546357,5.88838179,197.85,197.82,0.66]
[1760319546666,5.88838179,197.84,197.82,0.66]
[1760319546847,5.88838179,197.84,197.83,5.05484506]
[1760319548553,6.46838179,197.84,197.78,0.2]
[1760319548880,0.58,197.84,197.79,5.05586733]
[1760319549665,1e-08,197.86,197.8,0.66]
[1760319549964,1e-08,197.86,197.79,17.69553566]
[1760319549965,5.88838179,197.81,197.79,17.69553566]
[1760319550463,5.88838179,197.83,197.8,0.66]
[1760319550668,5.88838179,197.83,197.81,0.66]
[1760319550960,5.8883818,197.86,197.81,0.66]
[1760319551263,5.88838179,197.84,197.8,10.87647521]
[1760319551467,5.88838179,197.85,197.81,0.66]
[1760319551762,5.88838179,197.85,197.82,0.66]
[1760319553059,5.88838179,197.85,197.8,10.87647521]
[1760319553270,5.88838179,197.85,197.81,18.35374651]
[1760319553478,1e-08,197.86,197.84,5.88838179]
[1760319553664,1e-08,197.87,197.85,5.88838179]
[1760319553859,1e-08,197.87,197.86,0.66]
[1760319554258,1e-08,197.88,197.86,0.66]
[1760319554462,1e-08,197.88,197.87,11.53647521]
[1760319554782,5.8883818,197.88,197.84,20.8]
[1760319554950,5.8883818,197.88,197.85,0.66]
[1760319555144,1e-08,197.88,197.86,0.66]
[1760319555346,1e-08,197.88,197.84,10.87647521]
[1760319555347,1e-08,197.88,197.87,0.66]
[1760319556351,1e-08,197.88,197.87,11.53647521]
[1760319556671,1e-08,197.89,197.88,10.87647521]
[1760319556858,1e-08,197.89,197.88,11.53647521]
[1760319557175,1e-08,197.9,197.88,11.53647521]
[1760319557366,1e-08,197.9,197.89,16.58978765]
[1760319557752,1e-08,197.9,197.89,5.05331244]
[1760319558361,5.8883818,197.9,197.89,5.05331244]
[1760319559374,5.8883818,197.9,197.87,12.63431052]
[1760319559573,5.88838179,197.89,197.87,12.63431052]
[1760319560150,0.09899705,197.88,197.87,12.63431052]
[1760319560468,1e-08,197.89,197.88,10.87647521]
[1760319560675,1e-08,197.89,197.88,11.53647521]
[1760319561465,1e-08,197.89,197.88,16.59004302]
[1760319562452,1e-08,197.89,197.88,5.05356781]
[1760319562665,5.8883818,197.89,197.88,5.05356781]
[1760319563454,5.8883818,197.89,197.86,12.63505845]
[1760319563969,5.8883818,197.89,197.86,13.29505845]
[1760319564378,1e-08,197.89,197.87,0.66]
[1760319565777,1e-08,197.89,197.88,5.05356781]
[1760319565983,1e-08,197.89,197.88,86.14356781]
[1760319566174,1e-08,197.89,197.88,16.62004302]
[1760319566479,1e-08,197.89,197.88,22.50842481]
[1760319566779,1e-08,197.9,197.88,22.50842481]
[1760319566975,1e-08,197.92,197.91,31.67647521]
[1760319567160,1e-08,197.92,197.91,37.564857]
[1760319567359,1e-08,197.92,197.91,32.36647521]
[1760319567764,1e-08,197.92,197.9,5.05305709]
[1760319567988,5.88838179,197.91,197.9,5.05305709]
[1760319569060,1e-08,197.92,197.9,5.74305709]
[1760319569268,1e-08,197.92,197.91,11.56647521]
[1760319569872,1e-08,197.92,197.91,5.05280177]
[1760319570866,1e-08,197.92,197.9,5.05305709]
[1760319571271,5.8883818,197.92,197.9,5.05305709]
[1760319571778,1e-08,197.92,197.9,5.74305709]
[1760319572483,5.8883818,197.92,197.9,5.05305709]
[1760319572879,1e-08,197.92,197.9,5.05305709]
[1760319573076,1e-08,197.92,197.9,5.74305709]
[1760319573382,1e-08,197.92,197.9,5.05305709]
[1760319574183,8.7706229,197.91,197.9,5.05305709]
[1760319574386,1e-08,197.92,197.9,5.74305709]
[1760319574562,1e-08,197.92,197.91,10.87647521]
[1760319574998,1e-08,197.92,197.91,16.61927698]
[1760319575283,0.10838376,197.96,197.91,184.75390877]
[1760319575464,0.10838376,197.96,197.93,10.87647521]
[1760319575666,8.7706229,197.94,197.91,18.37480621]
[1760319575866,8.7706229,197.93,197.91,17.68480621]
[1760319577176,8.7706229,197.93,197.91,12.63200444]
[1760319577864,8.7706229,197.94,197.91,12.63200444]
[1760319579689,8.7706229,197.94,197.91,13.32200444]
[1760319580183,0.09588886,197.92,197.91,13.32200444]
[1760319580384,0.0951023,197.94,197.92,10.87647521]
[1760319580588,0.0951023,197.94,197.93,0.69]
[1760319580765,8.8657252,197.94,197.91,12.63200444]
[1760319582466,0.0951023,197.94,197.92,11.56647521]
[1760319582666,0.09801382,197.95,197.93,0.69]
[1760319583082,0.09801382,197.95,197.94,11.56647521]
[1760319583283,0.1037609,197.96,197.94,11.56647521]
[1760319583484,0.1037609,197.96,197.95,11.56647521]
[1760319583670,1e-08,197.96,197.95,16.61825596]
[1760319584071,1e-08,197.96,197.95,5.05178075]
[1760319584468,1e-08,197.96,197.95,37.41825596]
[1760319584667,1e-08,197.96,197.95,16.61825596]
[1760319585486,1e-08,197.96,197.95,15.92825596]
[1760319585884,8.77062291,197.96,197.95,5.05178075]
[1760319586375,1e-08,197.96,197.95,5.05178075]
[1760319586874,1e-08,197.96,197.95,5.74178075]
[1760319587975,8.77062291,197.96,197.95,5.05178075]
[1760319589380,1e-08,197.96,197.95,5.05178075]
[1760319589584,8.77062291,197.96,197.95,5.05178075]
[1760319589882,1e-08,197.96,197.93,17.68272969]
[1760319590104,1e-08,197.96,197.93,18.39272969]
[1760319590593,1e-08,197.96,197.94,0.71]
[1760319591183,1e-08,197.96,197.95,11.58647521]